bitfinex/quotes_BTCUSD_20240723
["timestamp","ask_amount","ask_price","bid_price","bid_amount"]
[1721716913910,2.83055128,66662.0,66661.0,0.000924]
[1721716914385,2.85300091,66662.0,66661.0,0.000924]
[1721716914590,2.99996339,66662.0,66661.0,0.000924]
[1721716914799,2.99996437,66662.0,66661.0,0.000924]
[1721716915014,2.83817924,66662.0,66661.0,0.000924]
[1721716915215,2.73523968,66662.0,66661.0,0.000924]
[1721716915363,2.72123968,66662.0,66661.0,0.000924]
[1721716916137,2.73523968,66662.0,66661.0,0.000924]
[1721716916285,2.74923968,66662.0,66661.0,0.000924]
[1721716916497,2.69923968,66662.0,66661.0,0.000924]
[1721716916706,2.65924941,66662.0,66661.0,0.000924]
[1721716916939,2.70924941,66662.0,66661.0,0.000924]
[1721716917074,2.65924941,66662.0,66661.0,0.000924]
[1721716917677,2.72100932,66662.0,66661.0,0.000924]
[1721716917949,2.59775026,66662.0,66661.0,0.000924]
[1721716918092,2.56415026,66662.0,66661.0,0.000924]
[1721716918300,2.48685026,66662.0,66661.0,0.000924]
[1721716918700,2.45885026,66662.0,66661.0,0.000924]
[1721716919122,2.47285026,66662.0,66661.0,0.000924]
[1721716919324,2.48685026,66662.0,66661.0,0.000924]
[1721716919533,2.47285026,66662.0,66661.0,0.000924]
[1721716920107,1.364094,66662.0,66661.0,0.136724]
[1721716920753,1.350094,66662.0,66661.0,0.136724]
[1721716920962,1.464094,66662.0,66661.0,0.000924]
[1721716921158,1.764115,66662.0,66661.0,0.000924]
[1721716921381,1.89707765,66662.0,66661.0,0.000924]
[1721716921595,1.91107765,66662.0,66661.0,0.000924]
[1721716921797,1.92107765,66662.0,66661.0,0.000924]
[1721716922027,2.00707765,66662.0,66661.0,0.000924]
[1721716922208,1.99707765,66662.0,66661.0,0.000924]
[1721716922435,2.57049865,66662.0,66661.0,0.000924]
[1721716922757,2.57049865,66662.0,66656.0,0.0151506]
[1721716922758,1.50185,66657.0,66656.0,6e-07]
[1721716922907,1.50185,66657.0,66640.0,0.0632]
[1721716922908,0.408039,66649.0,66640.0,0.0632]
[1721716923092,2.206934,66649.0,66640.0,0.0632]
[1721716923289,2.607013,66649.0,66636.0,0.0631]
[1721716923535,2.75397565,66649.0,66636.0,0.0631]
[1721716923955,2.75397565,66649.0,66636.0,0.042385]
[1721716923956,0.05,66640.0,66636.0,0.042385]
[1721716924109,0.500234,66632.0,66629.0,0.0803]
[1721716924466,1.49398843,66632.0,66629.0,0.0803]
[1721716924620,1.750858,66632.0,66629.0,0.0803]
[1721716925045,1.450702,66632.0,66629.0,0.0803]
[1721716925604,1.750858,66632.0,66629.0,0.0803]
[1721716925830,1.750858,66632.0,66628.0,0.009284]
[1721716925831,1.880958,66632.0,66628.0,0.009284]
[1721716926032,2.18592065,66632.0,66628.0,0.009284]
[1721716926234,1.45076,66629.0,66628.0,0.009284]
[1721716926438,1.97656,66629.0,66628.0,0.009284]
[1721716926797,1.450882,66623.0,66622.0,0.009284]
[1721716926991,1.851078,66623.0,66622.0,0.009284]
[1721716927209,1.801078,66623.0,66622.0,0.009284]
[1721716927571,1.751078,66623.0,66622.0,0.009284]
[1721716927984,1.756078,66623.0,66622.0,0.009284]
[1721716928191,2.52133665,66623.0,66622.0,0.009284]
[1721716928389,1.351107,66612.0,66609.0,0.009295]
[1721716928640,1.969153,66612.0,66609.0,0.009295]
[1721716928867,1.668907,66612.0,66609.0,0.009295]
[1721716929392,1.71219343,66612.0,66609.0,0.009295]
[1721716929903,1.668907,66612.0,66609.0,0.009295]
[1721716930160,1.75861709,66612.0,66609.0,0.009295]
[1721716930408,1.668907,66612.0,66609.0,0.009295]
[1721716930668,1.669907,66612.0,66609.0,0.009295]
[1721716931702,1.670907,66612.0,66609.0,0.009295]
[1721716931982,1.81786965,66612.0,66609.0,0.009295]
[1721716932228,1.670907,66612.0,66609.0,0.009295]
[1721716933196,1.6796526,66612.0,66609.0,0.009295]
[1721716933674,1.72937928,66612.0,66609.0,0.009295]
[1721716934176,1.6796526,66612.0,66609.0,0.009295]
[1721716934664,1.6796526,66612.0,66611.0,0.0664]
[1721716934908,1.453107,66612.0,66611.0,0.1493]
[1721716935134,1.152861,66612.0,66611.0,0.1493]
[1721716935367,1.052861,66612.0,66611.0,0.29659323]
[1721716935603,0.452369,66612.0,66611.0,0.32259721]
[1721716935861,0.002,66612.0,66611.0,0.32259721]
[1721716936325,0.452369,66612.0,66611.0,0.1525773]
[1721716936566,0.452369,66612.0,66611.0,0.06940398]
[1721716936567,1.353107,66612.0,66611.0,0.06940398]
[1721716936833,1.50006965,66612.0,66611.0,0.002]
[1721716937100,1.49906965,66612.0,66611.0,0.002]
[1721716937315,1.051861,66612.0,66611.0,0.002]
[1721716938006,1.050861,66612.0,66611.0,0.002]
[1721716938234,1.052861,66612.0,66611.0,0.002]
[1721716938433,1.052861,66612.0,66611.0,0.00227332]
[1721716938639,1.051861,66612.0,66611.0,0.00227332]
[1721716939050,0.002,66612.0,66611.0,0.29149323]
[1721716939269,0.452369,66612.0,66611.0,0.31449323]
[1721716939460,0.152123,66612.0,66611.0,0.31750142]
[1721716939702,0.002,66612.0,66611.0,0.31750142]
[1721716939904,0.752615,66612.0,66611.0,0.31750142]
[1721716940108,0.152123,66612.0,66611.0,0.31750142]
[1721716940534,0.002,66612.0,66611.0,0.31750142]
[1721716940731,0.452369,66612.0,66611.0,0.31750142]
[1721716940997,0.46917053,66612.0,66611.0,0.31750142]
[1721716941627,0.84635718,66612.0,66611.0,0.31750142]
[1721716941836,0.46917053,66612.0,66611.0,0.31750142]
[1721716942451,0.01880153,66612.0,66611.0,0.31750142]
[1721716943287,0.01880153,66612.0,66611.0,0.46762642]
[1721716943571,0.002,66612.0,66611.0,0.31750142]
[1721716943773,0.002,66612.0,66611.0,0.76787642]
[1721716944936,0.002,66612.0,66611.0,1.7681936]
[1721716945144,0.4696,66630.0,66629.0,0.14027332]
[1721716945345,0.4696,66630.0,66629.0,0.28729323]
[1721716945561,0.919847,66630.0,66629.0,0.29026409]
[1721716945764,0.4696,66630.0,66629.0,0.29026409]
[1721716945989,0.619682,66630.0,66629.0,0.29026409]
[1721716946192,0.67032848,66630.0,66629.0,0.29026409]
[1721716946371,0.52024648,66630.0,66629.0,0.29026409]
[1721716946572,0.48641253,66630.0,66629.0,0.29026409]
[1721716946780,0.48641253,66630.0,66629.0,0.59043309]
[1721716946984,0.48641253,66630.0,66629.0,1.06368609]
[1721716947179,0.48639329,66630.0,66629.0,0.76351709]
[1721716947385,0.48739329,66630.0,66629.0,0.47434809]
[1721716947711,0.48839329,66630.0,66629.0,0.32926409]
[1721716948061,0.48739329,66630.0,66629.0,0.32399077]
[1721716948261,0.48739329,66630.0,66629.0,1.07468609]
[1721716948462,0.48839329,66630.0,66629.0,0.78451709]
[1721716948864,0.48839329,66630.0,66629.0,1.08468609]
[1721716949092,0.48839329,66630.0,66629.0,0.78451709]
[1721716949292,0.48839329,66630.0,66629.0,0.48434809]
[1721716949496,0.002,66630.0,66629.0,0.33426409]
[1721716949818,0.002,66630.0,66629.0,0.48434809]
[1721716950101,0.01879834,66630.0,66629.0,0.48434809]
[1721716950309,0.002,66630.0,66629.0,0.33426409]
[1721716950736,0.002,66630.0,66629.0,0.78451709]
[1721716950949,0.002,66630.0,66629.0,1.13468609]
[1721716951171,0.002,66630.0,66629.0,1.18468609]
[1721716952370,0.002,66630.0,66629.0,1.68181774]
[1721716953034,0.002,66630.0,66629.0,1.80649292]
[1721716953254,0.002,66630.0,66629.0,1.65953027]
[1721716953464,0.002,66630.0,66629.0,1.53485509]
[1721716953669,0.001,66630.0,66629.0,1.47485509]
[1721716953885,0.150047,66646.0,66645.0,0.13607332]
[1721716954116,0.150047,66646.0,66645.0,0.28309323]
[1721716954117,0.16670213,66646.0,66645.0,0.28309323]
[1721716954741,0.16670213,66646.0,66645.0,0.28598229]
[1721716955789,0.01665513,66646.0,66645.0,0.28598229]
[1721716956199,0.300057,66654.0,66652.0,0.00027332]
[1721716956351,0.750144,66654.0,66653.0,0.00027332]
[1721716956551,0.8666882,66654.0,66653.0,0.00027332]
[1721716957524,0.8756882,66654.0,66653.0,0.00027332]
[1721716957773,0.8756882,66654.0,66653.0,0.00127332]
[1721716957979,0.8666882,66654.0,66653.0,0.00127332]
[1721716958155,0.5666292,66654.0,66653.0,0.00127332]
[1721716958363,0.559085,66654.0,66653.0,0.00227332]
[1721716958579,0.57566886,66654.0,66653.0,0.00227332]
[1721716958776,0.559085,66654.0,66653.0,0.00227332]
[1721716958999,0.57566881,66654.0,66653.0,0.00227332]
[1721716959385,0.87572581,66654.0,66653.0,0.00227332]
[1721716959580,0.57566881,66654.0,66653.0,0.00227332]
[1721716960387,0.27561181,66654.0,66653.0,0.00227332]
[1721716960795,0.57566881,66654.0,66653.0,0.00227332]
[1721716961352,0.87572581,66654.0,66653.0,0.002]
[1721716961557,0.87573556,66654.0,66653.0,0.002]
[1721716961907,0.87573556,66654.0,66653.0,0.00227332]
[1721716962470,0.87573556,66654.0,66653.0,0.002]
[1721716962669,0.99331402,66654.0,66653.0,0.002]
[1721716963373,0.87573556,66654.0,66653.0,0.002]
[1721716963750,0.87573556,66654.0,66653.0,0.00227332]
[1721716964163,0.57567856,66654.0,66653.0,0.00227332]
[1721716964292,0.57562441,66654.0,66653.0,0.00227332]
[1721716964495,0.559085,66654.0,66653.0,0.00227332]
[1721716964703,0.57562443,66654.0,66653.0,0.00227332]
[1721716966183,0.87568143,66654.0,66653.0,0.00227332]
[1721716966396,1.25243843,66654.0,66653.0,0.002]
[1721716967054,1.35180435,66654.0,66653.0,0.002]
[1721716967650,1.3519117,66654.0,66653.0,0.002]
[1721716968226,0.02564656,66654.0,66653.0,0.29081991]
[1721716968374,0.02564656,66654.0,66653.0,0.35018272]
[1721716968580,0.02564656,66654.0,66653.0,0.74401911]
[1721716968782,0.009,66654.0,66653.0,0.74401911]
[1721716969105,0.009,66654.0,66653.0,0.44395811]
[1721716969258,0.009,66654.0,66653.0,0.76701911]
[1721716969463,0.009,66654.0,66653.0,1.11321252]
[1721716969688,0.009,66654.0,66653.0,1.06608011]
[1721716969888,0.00084,66664.0,66663.0,0.14337332]
[1721716970146,0.01735303,66664.0,66663.0,0.29039323]
[1721716970517,0.00084,66664.0,66663.0,0.29322662]
[1721716971305,0.00084,66664.0,66663.0,0.29239323]
[1721716971485,0.01735249,66664.0,66663.0,0.29922662]
[1721716973251,0.01735249,66664.0,66663.0,0.29639323]
[1721716973421,0.76738249,66664.0,66663.0,0.006]
[1721716973622,0.76743891,66664.0,66663.0,0.006]
[1721716974469,1.16543703,66664.0,66663.0,0.006]
[1721716974624,1.16543703,66664.0,66663.0,0.00627332]
[1721716974822,1.16543703,66664.0,66663.0,0.006]
[1721716975056,1.16550515,66664.0,66663.0,0.006]
[1721716976539,0.80109315,66664.0,66663.0,0.00627332]
[1721716976714,0.80109315,66664.0,66663.0,0.00227332]
[1721716976715,0.50108277,66664.0,66663.0,0.00227332]
[1721716976890,0.50108277,66664.0,66663.0,0.00027332]
[1721716976891,0.47146166,66664.0,66663.0,0.00027332]
[1721716977526,0.47246166,66664.0,66663.0,0.00027332]
[1721716977896,0.46846166,66664.0,66663.0,0.00027332]
[1721716978098,0.46746166,66664.0,66663.0,0.00127332]
[1721716978301,0.16744966,66664.0,66663.0,0.00527332]
[1721716978505,0.16744966,66664.0,66663.0,0.00427332]
[1721716979107,0.46746166,66664.0,66663.0,0.00427332]
[1721716979570,0.46751806,66664.0,66663.0,0.00427332]
[1721716979775,0.46751806,66664.0,66663.0,0.00827332]
[1721716980584,0.50119166,66664.0,66663.0,0.00827332]
[1721716981622,0.16750606,66664.0,66663.0,0.00827332]
[1721716981823,0.2011894,66664.0,66663.0,0.00827332]
[1721716982030,0.5012014,66664.0,66663.0,0.00827332]
[1721716982226,0.2011894,66664.0,66663.0,0.00827332]
[1721716982429,0.5012014,66664.0,66663.0,0.00827332]
[1721716982694,0.50120532,66664.0,66663.0,0.00827332]
[1721716983137,1.10122932,66664.0,66663.0,0.008]
[1721716983350,1.24502932,66664.0,66663.0,0.008]
[1721716983566,1.64504132,66664.0,66663.0,0.008]
[1721716983820,1.34502932,66664.0,66663.0,0.008]
[1721716984033,1.38702571,66664.0,66663.0,0.004]
[1721716984279,0.750097,66658.0,66657.0,0.00027332]
[1721716984494,0.401852,66664.0,66663.0,0.00027332]
[1721716984698,0.90410334,66664.0,66663.0,0.00027332]
[1721716985037,0.85287,66664.0,66663.0,0.00027332]
[1721716985240,0.90320099,66664.0,66663.0,0.00027332]
[1721716985474,0.50318899,66664.0,66663.0,0.00027332]
[1721716985690,0.05317065,66664.0,66663.0,0.14729323]
[1721716986114,0.05317065,66664.0,66663.0,0.21009323]
[1721716986115,0.05417065,66664.0,66663.0,0.21009323]
[1721716986317,0.02249725,66664.0,66663.0,0.21009323]
[1721716986614,0.01749725,66664.0,66663.0,0.21009323]
[1721716986895,0.01749725,66664.0,66663.0,0.21709323]
[1721716987105,0.16750325,66664.0,66663.0,0.21709323]
[1721716987315,0.50115391,66664.0,66663.0,0.15429323]
[1721716987518,0.20114191,66664.0,66663.0,0.15429323]
[1721716987726,0.50115391,66664.0,66663.0,0.15429323]
[1721716987893,0.20114191,66664.0,66663.0,0.15429323]
[1721716988101,0.20110846,66664.0,66663.0,0.15429323]
[1721716988301,0.05110246,66664.0,66663.0,0.15429323]
[1721716988466,0.01746325,66664.0,66663.0,0.22019323]
[1721716988807,0.16746925,66664.0,66663.0,0.22019323]
[1721716989988,0.01746325,66664.0,66663.0,0.22019323]
[1721716991146,0.00084,66664.0,66663.0,0.22019323]
[1721716991796,0.01742508,66664.0,66663.0,0.52020923]
[1721716992011,0.01742508,66664.0,66663.0,0.79354815]
[1721716992418,0.01742508,66664.0,66663.0,0.74841723]
[1721716993015,0.01742508,66664.0,66663.0,0.74541723]
[1721716993226,0.01742508,66664.0,66663.0,0.74141723]
[1721716993436,0.01742508,66664.0,66663.0,0.74641723]
[1721716993638,0.01742508,66664.0,66663.0,0.76041723]
[1721716993839,0.01742508,66664.0,66663.0,1.05543323]
[1721716994048,0.01742508,66664.0,66663.0,1.12369469]
[1721716994256,0.01742485,66664.0,66663.0,1.21606244]
[1721716994687,0.01742485,66664.0,66663.0,1.09143323]
[1721716994688,0.00084,66664.0,66663.0,1.09143323]
[1721716994888,0.00084,66664.0,66663.0,1.2160608]
[1721716994889,0.01738551,66664.0,66663.0,1.2160608]
[1721716995712,0.01738551,66664.0,66663.0,1.6160768]
[1721716995918,0.01738551,66664.0,66663.0,1.76303945]
[1721716996346,0.01738551,66664.0,66663.0,1.6160768]
[1721716996944,0.01738551,66664.0,66663.0,1.6660768]
[1721716997244,0.01738551,66664.0,66663.0,1.6660724]
[1721716997245,0.01737325,66664.0,66663.0,1.6660724]
[1721716997383,0.00084,66664.0,66663.0,1.66606959]
[1721716997987,0.00084,66664.0,66663.0,1.72948306]
[1721716999317,0.00084,66664.0,66663.0,1.71648306]
[1721716999514,0.00084,66664.0,66663.0,2.01649906]
[1721716999705,0.00084,66664.0,66663.0,2.03049906]
[1721716999897,0.00084,66664.0,66663.0,2.01649906]
[1721717000222,0.00084,66664.0,66663.0,2.01648032]
[1721717000423,0.00084,66664.0,66663.0,2.03048032]
[1721717000834,0.00084,66664.0,66663.0,2.03934441]
[1721717001035,0.00084,66664.0,66663.0,2.01134441]
[1721717001463,0.00084,66664.0,66663.0,2.02534441]
[1721717001675,0.00084,66664.0,66663.0,2.03934441]
[1721717002053,0.00084,66664.0,66663.0,2.13934441]
[1721717002882,0.00084,66664.0,66663.0,2.12534441]
[1721717003118,0.00084,66664.0,66663.0,2.11134602]
[1721717003238,0.00084,66664.0,66663.0,2.12534571]
[1721717003439,0.00084,66664.0,66663.0,2.13934571]
[1721717003641,0.00084,66664.0,66663.0,2.12534571]
[1721717003844,0.00084,66664.0,66663.0,2.59697112]
[1721717004051,0.00084,66664.0,66663.0,2.62497112]
[1721717004268,0.00084,66664.0,66663.0,2.59697112]
[1721717004490,0.00084,66664.0,66663.0,2.72537171]
[1721717004692,0.00084,66664.0,66663.0,2.91098112]
[1721717005372,0.00084,66664.0,66663.0,2.72537171]
[1721717006155,0.00084,66664.0,66663.0,2.72536087]
[1721717006535,0.00084,66664.0,66663.0,2.60076879]
[1721717006909,0.00084,66664.0,66663.0,2.73936087]
[1721717007601,0.44938655,66689.0,66688.0,0.51422932]
[1721717007825,0.46601781,66689.0,66688.0,0.66124923]
[1721717008031,0.02508126,66689.0,66688.0,0.66124923]
[1721717009127,0.02509585,66689.0,66688.0,0.66124923]
[1721717009541,0.00845,66689.0,66688.0,0.59714923]
[1721717009947,0.00845,66689.0,66688.0,0.69424705]
[1721717010983,0.00845,66689.0,66688.0,0.99415105]
[1721717011190,0.00845,66689.0,66688.0,1.05315105]
[1721717011400,0.00845,66689.0,66688.0,0.96605323]
[1721717012013,0.00845,66689.0,66688.0,1.46685723]
[1721717012834,0.00845,66689.0,66688.0,0.41719323]
[1721717013059,0.00845,66689.0,66688.0,0.36719323]
[1721717013262,0.00845,66689.0,66688.0,0.30719323]
[1721717013471,0.00845,66689.0,66688.0,0.32119323]
[1721717013669,0.00845,66689.0,66688.0,0.24329323]
[1721717013879,0.00845,66689.0,66688.0,0.23429323]
[1721717014287,0.15085,66689.0,66688.0,0.17401991]
[1721717014492,0.15085,66689.0,66688.0,0.17429323]
[1721717014696,0.16763288,66689.0,66688.0,0.17429323]
[1721717015107,0.16763433,66689.0,66688.0,0.17429323]
[1721717016495,0.10583433,66689.0,66688.0,0.17429323]
[1721717016769,0.02523433,66689.0,66688.0,0.17429323]
[1721717017547,0.00845,66689.0,66688.0,0.17429323]
[1721717018537,0.02521996,66689.0,66688.0,0.17429323]
[1721717019143,0.00845,66689.0,66688.0,0.17429323]
[1721717021861,0.02518681,66689.0,66688.0,0.17429323]
[1721717022265,0.10758681,66689.0,66688.0,0.17429323]
[1721717023238,0.17108681,66689.0,66688.0,0.17429323]
[1721717023823,0.17105186,66689.0,66688.0,0.17429323]
[1721717026974,0.17104861,66689.0,66688.0,0.17429323]
[1721717029991,0.15435,66689.0,66688.0,0.17429323]
[1721717030186,0.17109547,66689.0,66688.0,0.17429323]
[1721717030613,0.17109262,66689.0,66688.0,0.17429323]
[1721717031560,0.20484157,66689.0,66688.0,0.17429323]
[1721717031760,0.17109262,66689.0,66688.0,0.17429323]
[1721717032989,0.15435,66689.0,66688.0,0.17429323]
[1721717033201,0.1711031,66689.0,66688.0,0.17429323]
[1721717036201,0.17109415,66689.0,66688.0,0.17429323]
[1721717036605,0.02519415,66689.0,66688.0,0.17429323]
[1721717036810,0.02519415,66689.0,66688.0,0.19807255]
[1721717037011,0.02519415,66689.0,66688.0,0.49806221]
[1721717037454,0.02519415,66689.0,66688.0,0.47106221]
[1721717038009,0.02519415,66689.0,66688.0,0.39728289]
[1721717039031,0.02520333,66689.0,66688.0,0.39726661]
[1721717040348,0.02520333,66689.0,66688.0,0.29886661]
[1721717040923,0.02520333,66689.0,66688.0,0.17429323]
[1721717041427,0.02517787,66689.0,66688.0,0.17429323]
[1721717041829,0.00845,66689.0,66688.0,0.17429323]
[1721717042081,0.16522556,66689.0,66688.0,0.17429323]
[1721717043289,0.21016198,66689.0,66688.0,0.17429323]
[1721717043602,0.16522556,66689.0,66688.0,0.17429323]
[1721717044353,0.23269782,66689.0,66688.0,0.17429323]
[1721717044769,0.23271428,66689.0,66688.0,0.17429323]
[1721717045171,0.16525715,66689.0,66688.0,0.17429323]
[1721717045383,0.23273759,66689.0,66688.0,0.17429323]
[1721717046389,0.02526697,66689.0,66688.0,0.17429323]
[1721717046597,0.02526697,66689.0,66688.0,0.29887864]
[1721717046598,0.070251,66689.0,66688.0,0.29887864]
[1721717047532,0.070251,66689.0,66688.0,0.29887631]
[1721717047533,0.07024639,66689.0,66688.0,0.29887631]
[1721717048159,0.02525796,66689.0,66688.0,0.29887631]
[1721717048534,0.09274061,66689.0,66688.0,0.29887631]
[1721717048710,0.02525796,66689.0,66688.0,0.29887631]
[1721717050178,0.07025406,66689.0,66688.0,0.39216394]
[1721717050396,0.00845,66689.0,66688.0,0.23769323]
[1721717050607,0.07025504,66689.0,66688.0,0.36227478]
[1721717050766,0.07025504,66689.0,66688.0,0.29887478]
[1721717051009,0.02525879,66689.0,66688.0,0.29887478]
[1721717051209,0.02525879,66689.0,66688.0,0.17429323]
[1721717051416,0.1152513,66689.0,66688.0,0.17429323]
[1721717051617,0.02525879,66689.0,66688.0,0.17429323]
[1721717053423,0.07594953,66689.0,66688.0,0.17429323]
[1721717053597,0.07594953,66689.0,66688.0,0.2988766]
[1721717053598,0.02520949,66689.0,66688.0,0.2988766]
[1721717053834,0.09270902,66689.0,66688.0,0.2988766]
[1721717054039,0.09269574,66689.0,66688.0,0.2988783]
[1721717055580,0.02519564,66689.0,66688.0,0.2988783]
[1721717056407,0.00845,66689.0,66688.0,0.17429323]
[1721717056609,0.16801114,66689.0,66688.0,0.17429323]
[1721717056991,0.16792462,66689.0,66688.0,0.17401991]
[1721717057589,0.23542962,66689.0,66688.0,0.29860396]
[1721717057858,0.23542962,66689.0,66688.0,0.40530396]
[1721717058257,0.23542962,66689.0,66688.0,0.40557728]
[1721717058410,0.16792462,66689.0,66688.0,0.28099323]
[1721717058635,0.09263318,66689.0,66688.0,0.40557742]
[1721717058836,0.09263318,66689.0,66688.0,0.46627742]
[1721717059136,0.09263318,66689.0,66688.0,0.48927742]
[1721717059720,0.09264545,66689.0,66688.0,0.48927634]
[1721717059949,0.02513288,66689.0,66688.0,0.48927634]
[1721717060300,0.02513288,66689.0,66688.0,0.40530302]
[1721717060465,0.02513288,66689.0,66688.0,0.40557634]
[1721717061297,0.09264763,66689.0,66688.0,0.40557634]
[1721717062559,0.09259019,66689.0,66688.0,0.40557602]
[1721717063290,0.02507207,66689.0,66688.0,0.40557602]
[1721717065443,0.02508626,66689.0,66688.0,0.45229133]
[1721717065669,0.07009607,66689.0,66688.0,0.45229133]
[1721717065879,0.02508626,66689.0,66688.0,0.40557373]
[1721717066127,0.0250778,66689.0,66688.0,0.55017012]
[1721717067538,0.0250778,66689.0,66688.0,0.67317012]
[1721717068452,0.02507066,66689.0,66688.0,0.6731605]
[1721717069998,0.02507066,66689.0,66688.0,0.4285605]
[1721717070234,0.02507066,66689.0,66688.0,0.4055605]
[1721717071421,0.00845,66689.0,66688.0,0.40557042]
[1721717071878,0.02505815,66689.0,66688.0,0.40557042]
[1721717074447,0.02505815,66689.0,66688.0,0.40556962]
[1721717074448,0.00845,66689.0,66688.0,0.40556962]
[1721717075057,0.0250275,66689.0,66688.0,0.40556962]
[1721717076670,0.0250275,66689.0,66688.0,0.4052963]
[1721717076874,0.0250275,66689.0,66688.0,0.62519438]
[1721717077073,0.0250275,66689.0,66688.0,0.92509838]
[1721717077781,0.0250275,66689.0,66688.0,0.55551955]
[1721717077782,0.02488788,66689.0,66688.0,0.55551955]
[1721717078191,0.02492895,66689.0,66688.0,0.55551954]
[1721717079033,0.02492895,66689.0,66688.0,0.40556754]
[1721717079531,0.02492895,66689.0,66688.0,0.55551954]
[1721717079965,0.02492895,66689.0,66688.0,0.55524622]
[1721717080365,0.02492895,66689.0,66688.0,0.55551954]
[1721717080561,0.02492895,66689.0,66688.0,0.40529423]
[1721717080562,0.02484369,66689.0,66688.0,0.40529423]
[1721717080974,0.02484369,66689.0,66688.0,0.40556755]
[1721717081384,0.06983941,66689.0,66688.0,0.40556755]
[1721717081748,0.02484369,66689.0,66688.0,0.40556755]
[1721717083597,0.02476833,66689.0,66688.0,0.4055755]
[1721717083770,0.09226192,66689.0,66688.0,0.40557552]
[1721717086198,0.02476833,66689.0,66688.0,0.40557552]
[1721717086641,0.02475465,66689.0,66688.0,0.40557536]
[1721717087669,0.0697603,66689.0,66688.0,0.40557536]
[1721717089723,0.0698253,66689.0,66688.0,0.40557245]
[1721717090129,0.06981619,66689.0,66688.0,0.28099323]
[1721717090329,0.06981619,66689.0,66688.0,0.40557248]
[1721717090568,0.02480746,66689.0,66688.0,0.40557248]
[1721717092825,0.02478614,66689.0,66688.0,0.4055726]
[1721717095293,0.17473514,66689.0,66688.0,0.4055726]
[1721717095585,0.09230521,66689.0,66688.0,0.4055726]
[1721717095797,0.09230521,66689.0,66688.0,0.28099323]
[1721717095798,0.09229811,66689.0,66688.0,0.28099323]
[1721717096020,1.05792806,66689.0,66688.0,0.28099323]
[1721717096489,0.9453917,66689.0,66688.0,0.28099323]
[1721717098851,0.9454434,66689.0,66688.0,0.28071991]
[1721717099277,0.9454434,66689.0,66688.0,0.28099323]
[1721717099692,0.6455444,66689.0,66688.0,0.28099323]
[1721717100124,0.0581964,66689.0,66688.0,0.28099323]
[1721717100330,0.50807199,66689.0,66688.0,0.28099323]
[1721717100534,0.62056732,66689.0,66688.0,0.28099323]
[1721717100742,0.80797099,66689.0,66688.0,0.28099323]
[1721717100956,0.88457099,66689.0,66688.0,0.28099323]
[1721717101168,0.88465484,66689.0,66688.0,0.28099323]
[1721717101356,0.94985484,66689.0,66688.0,0.28099323]
[1721717101616,0.899997,66689.0,66688.0,0.28099323]
[1721717101845,0.64995583,66689.0,66688.0,0.28099323]
[1721717102024,0.76244341,66689.0,66688.0,0.28099323]
[1721717102281,0.64995583,66689.0,66688.0,0.28099323]
[1721717102487,0.76244341,66689.0,66688.0,0.28099323]
[1721717102694,0.76244341,66689.0,66688.0,0.17429323]
[1721717103116,0.46254441,66689.0,66688.0,0.17429323]
[1721717103341,0.05830783,66689.0,66688.0,0.41154523]
[1721717103572,0.05830783,66689.0,66688.0,0.58612632]
[1721717103573,0.02487013,66689.0,66688.0,0.58612632]
[1721717103792,0.02487013,66689.0,66688.0,1.05263032]
[1721717104055,0.02487013,66689.0,66688.0,1.49949087]
[1721717104056,0.02494654,66689.0,66688.0,1.49949087]
[1721717104480,0.02494654,66689.0,66688.0,1.07501188]
[1721717104689,0.02494654,66689.0,66688.0,1.00262234]
[1721717105094,0.02494654,66689.0,66688.0,0.98862234]
[1721717105302,0.02494654,66689.0,66688.0,1.03862234]
[1721717105752,0.02494654,66689.0,66688.0,1.33852634]
[1721717105957,0.00845,66689.0,66688.0,1.20095323]
[1721717106164,0.00845,66689.0,66688.0,1.21495323]
[1721717106372,0.00845,66689.0,66688.0,0.79174923]
[1721717107222,0.00845,66689.0,66688.0,0.26419323]
[1721717107431,0.00845,66689.0,66688.0,0.29959343]
[1721717107630,0.00845,66689.0,66688.0,0.29986675]
[1721717107831,0.00845,66689.0,66688.0,0.29959343]
[1721717108049,0.02490563,66689.0,66688.0,0.17529323]
[1721717108254,0.29682455,66689.0,66688.0,0.17529323]
[1721717108456,0.65992355,66689.0,66688.0,0.17529323]
[1721717108665,0.65992355,66689.0,66688.0,0.17501991]
[1721717108666,0.95982255,66689.0,66688.0,0.17501991]
[1721717108871,0.95982255,66689.0,66688.0,0.17529323]
[1721717109290,0.95982255,66689.0,66688.0,0.16129323]
[1721717109489,0.95982255,66689.0,66688.0,0.14729323]
[1721717109691,1.25972155,66689.0,66688.0,0.014]
[1721717109899,1.4066842,66689.0,66688.0,0.028]
[1721717110108,0.149987,66673.0,66667.0,0.0605]
[1721717110319,0.149987,66673.0,66670.0,0.060092]
[1721717110517,0.1375,66674.0,66673.0,0.00027332]
[1721717110518,0.287483,66674.0,66673.0,0.00027332]
[1721717110718,0.287483,66674.0,66673.0,0.14729323]
[1721717111304,0.287483,66674.0,66673.0,0.14701991]
[1721717111503,1.187384,66674.0,66673.0,0.14729323]
[1721717111715,1.187384,66674.0,66673.0,0.14701991]
[1721717112553,0.887417,66674.0,66673.0,0.16129323]
[1721717112933,0.887417,66674.0,66673.0,0.14729323]
[1721717113094,0.887417,66674.0,66673.0,0.17529323]
[1721717114727,1.187384,66674.0,66673.0,0.028]
[1721717115796,0.887417,66674.0,66673.0,0.02827332]
[1721717115935,0.887417,66674.0,66673.0,0.17529323]
[1721717116559,0.887417,66674.0,66673.0,0.16129323]
[1721717116794,0.887417,66674.0,66673.0,0.14729323]
[1721717116994,0.887417,66674.0,66673.0,0.16029323]
[1721717117198,0.887417,66674.0,66673.0,0.17229323]
[1721717117395,0.887417,66674.0,66673.0,0.15929323]
[1721717117597,0.149983,66674.0,66673.0,0.16829323]
[1721717117805,0.1477,66678.0,66677.0,0.00027332]
[1721717118017,0.531423,66678.0,66677.0,0.14729323]
[1721717118194,0.231266,66682.0,66681.0,0.00027332]
[1721717118571,0.149959,66685.0,66684.0,0.00027332]
[1721717118778,0.0786,66690.0,66688.0,0.00027332]
[1721717118975,0.158399,66689.0,66688.0,0.14729323]
[1721717119201,0.00845,66689.0,66688.0,0.14729323]
[1721717120227,0.00845,66689.0,66688.0,0.15429323]
[1721717120656,0.00845,66689.0,66688.0,0.14729323]
[1721717121282,0.158399,66689.0,66688.0,0.15829323]
[1721717121693,0.458298,66689.0,66688.0,0.15829323]
[1721717121923,0.601298,66689.0,66688.0,0.16929323]
[1721717122723,0.901197,66689.0,66688.0,0.16929323]
[1721717124449,0.901197,66689.0,66688.0,0.16901991]